bitfinex-derivatives/quotes_ETHF0:USTF0_20250309
["timestamp","ask_amount","ask_price","bid_price","bid_amount"]
[1741542892945,0.00742334,2020.5,2020.0,3.2078]
[1741542893139,0.99022,2019.9,2019.8,3.9627]
[1741542893340,3.2078,2020.3,2019.8,3.9627]
[1741542893839,3.2078,2020.3,2019.4,0.00742334]
[1741542894139,0.00742334,2020.5,2019.4,0.41658268]
[1741542894140,3.2078,2019.9,2019.4,0.41658268]
[1741542894343,3.2078,2019.9,2019.4,0.00742334]
[1741542894646,3.2078,2020.3,2020.1,0.9901]
[1741542894845,0.99003,2020.3,2020.1,0.9901]
[1741542895038,0.99003,2020.3,2020.0,4.19794]
[1741542895238,3.12242334,2020.5,2020.0,3.2078]
[1741542895438,0.99009,2020.2,2020.0,4.19797]
[1741542895643,0.99012,2020.1,2020.0,3.2078]
[1741542895847,0.99001,2020.4,2020.0,3.2078]
[1741542896044,0.99737334,2020.5,2020.3,0.99003]
[1741542896243,0.00742334,2020.5,2020.0,3.2078]
[1741542896442,3.2078,2021.3,2020.4,4.19778]
[1741542896640,6.3228,2021.3,2020.4,3.2078]
[1741542896840,6.3228,2021.3,2020.8,3.2078]
[1741542897045,0.98971,2021.0,2020.8,3.2078]
[1741542897539,3.614,2021.4,2020.8,7.2078]
[1741542897740,10.1033,2021.6,2021.1,3.2078]
[1741542897942,0.98959,2021.2,2020.8,3.2078]
[1741542898146,0.98959,2021.2,2020.9,0.98971]
[1741542898546,0.98961,2021.2,2020.9,0.98969]
[1741542898839,0.98962,2021.2,2021.0,0.98968]
[1741542899046,0.00742334,2021.3,2020.8,3.2078]
[1741542899348,0.00742334,2021.3,2021.2,0.98959]
[1741542899649,0.9896,2021.2,2020.8,3.2078]
[1741542899949,0.98967,2021.1,2020.7,3.81922334]
[1741542900151,0.9896,2021.2,2020.9,4.19748]
[1741542900355,6.3218,2021.6,2020.9,3.2078]
[1741542900541,9.9358,2021.9,2021.2,3.2078]
[1741542900847,0.98938,2021.7,2021.2,3.2078]
[1741542901047,9.9358,2021.9,2021.4,0.98946]
[1741542901250,0.98937,2021.7,2021.4,0.98948]
[1741542901552,9.9358,2021.9,2021.2,3.2078]
[1741542901744,0.98941,2021.6,2021.1,3.114]
[1741542902053,3.2078,2021.9,2021.3,3.2078]
[1741542902245,6.3218,2022.2,2021.7,3.2078]
[1741542902444,2.47287,2022.1,2021.4,3.2078]
[1741542902745,0.98929,2021.8,2021.7,0.00742334]
[1741542903344,3.2078,2021.9,2021.7,0.00742334]
[1741542903546,0.98927,2021.9,2021.7,0.99676334]
[1741542903845,0.98929,2021.8,2021.7,0.00742334]
[1741542904546,0.98929,2021.8,2020.8,24.68143]
[1741542904547,4.0,2021.8,2020.8,0.4952]
[1741542904748,3.2078,2021.4,2020.7,7.0196]
[1741542904950,3.2078,2021.4,2021.0,3.2078]
[1741542905149,4.19731,2021.4,2021.2,0.98959]
[1741542905343,3.2078,2021.4,2021.0,3.2078]
[1741542905544,3.2078,2021.7,2021.3,3.2078]
[1741542905750,3.21522334,2022.0,2021.3,3.2078]
[1741542906050,2.47311,2021.9,2021.3,3.2078]
[1741542906254,0.98949,2021.4,2021.3,3.2078]
[1741542906549,2.653,2021.4,2020.5,3.2078]
[1741542906755,3.2078,2021.6,2019.8,3.2078]
[1741542906756,5.68258,2020.6,2019.8,3.2078]
[1741542906953,3.2078,2020.3,2019.6,2.47587]
[1741542907157,3.112,2020.5,2019.7,3.703]
[1741542907357,3.112,2020.5,2019.6,2.47584]
[1741542907358,3.2078,2020.2,2019.6,0.39696771]
[1741542907658,4.19789,2020.2,2019.7,3.2078]
[1741542907954,4.19789,2020.2,2020.0,0.99017]
[1741542907955,0.00742334,2020.1,2020.0,0.99017]
[1741542908252,6.3198,2020.5,2019.7,7.21522334]
[1741542908553,6.3198,2020.5,2020.4,0.98998]
[1741542908759,7.30976,2020.5,2020.2,0.99006]
[1741542909054,6.3198,2020.5,2019.9,7.1432]
[1741542909254,6.3198,2020.5,2020.2,0.99007]
[1741542909255,7.30975,2020.5,2020.2,0.99007]
[1741542909451,0.00742334,2020.4,2019.9,7.1432]
[1741542909654,0.99017,2020.0,2019.9,7.1432]
[1741542909850,3.2078,2020.2,2019.9,7.1432]
[1741542910747,4.19789,2020.2,2019.9,8.13342]
[1741542911057,0.99019,2020.0,2019.7,0.99772334]
[1741542911454,0.99027,2019.8,2019.7,0.00742334]
[1741542911951,2.47593,2019.7,2018.7,3.2078]
[1741542912158,3.2078,2019.4,2018.7,3.57817632]
[1741542913051,3.112,2019.5,2018.8,0.00742334]
[1741542913251,0.00742334,2019.3,2018.8,0.00742334]
[1741542913456,1.345,2020.0,2018.8,0.00742334]
[1741542913457,3.2078,2020.3,2019.3,2.47629]
[1741542913650,3.2078,2020.3,2020.0,0.99017]
[1741542913851,3.2078,2020.3,2019.5,3.2078]
[1741542914157,0.99019,2020.0,2019.7,0.9903]
[1741542914354,3.2078,2020.0,2019.4,3.8159]
[1741542914552,0.99029,2019.8,2019.6,0.00742334]
[1741542914749,3.2078,2020.0,2019.6,0.00742334]
[1741542914750,4.19812,2019.7,2019.6,0.00742334]
[1741542914945,0.99032,2019.7,2019.6,0.00742334]
[1741542915546,3.2078,2019.7,2019.0,2.949]
[1741542915750,3.2078,2019.1,2018.5,0.496]
[1741542915955,3.113,2019.1,2019.0,0.99066]
[1741542916258,3.2078,2019.2,2018.6,2.47716]
[1741542916463,0.99064,2019.1,2018.8,3.2078]
[1741542916752,0.99068,2019.0,2018.7,0.99819334]
[1741542916956,0.99063,2019.1,2018.8,0.99073]
[1741542917151,0.00742334,2019.2,2019.0,3.2078]
[1741542917355,3.8597,2019.9,2019.0,8.63337]
[1741542917553,3.2078,2019.8,2019.0,6.1568]
[1741542917752,0.9904,2019.6,2019.3,0.99049]
[1741542917953,0.99043,2019.5,2019.3,3.2078]
[1741542918153,3.2078,2019.8,2019.3,4.19832]
[1741542918362,0.99044,2019.5,2019.3,3.2078]
[1741542918663,3.2078,2019.5,2018.8,7.3033]
[1741542918958,6.3208,2019.5,2018.8,7.3033]
[1741542919161,6.3208,2019.5,2018.9,4.1985]
[1741542919357,6.3208,2019.5,2018.9,4.19851]
[1741542919755,0.99058,2019.2,2018.9,4.19851]
[1741542919961,0.9907,2019.0,2018.6,22.217]
[1741542920159,3.2078,2019.5,2018.6,22.217]
[1741542920358,0.00742334,2019.8,2019.3,3.2078]
[1741542921056,0.00742334,2019.8,2019.7,4.19812]
[1741542921259,6.741,2020.3,2019.7,7.2078]
[1741542921260,4.10306,2020.3,2019.7,7.2078]
[1741542921559,0.99009,2020.2,2019.9,0.99019]
[1741542922257,3.113,2020.3,2019.7,3.2078]
[1741542922455,3.113,2020.3,2019.8,0.00742334]
[1741542923262,0.99022,2019.9,2019.8,0.00742334]
[1741542924162,0.99059,2019.2,2018.9,3.7929]
[1741542924363,6.3208,2019.5,2018.9,0.9907]
[1741542924657,0.99071,2018.9,2018.8,3.2078]
[1741542924853,3.2078,2019.2,2018.8,3.2078]
[1741542925057,0.99063,2019.1,2018.9,0.99071]
[1741542925465,0.99067,2019.0,2018.8,3.21522334]
[1741542925756,0.99068,2019.0,2018.8,4.20597334]
[1741542925959,0.00742334,2019.2,2019.0,0.99064]
[1741542926158,0.00742334,2019.2,2018.8,3.21522334]
[1741542926564,0.99064,2019.1,2018.8,3.21522334]
[1741542926766,0.99071,2018.9,2018.8,3.21522334]
[1741542927257,0.99091,2018.5,2018.4,3.2078]
[1741542927462,0.99081,2018.7,2018.4,3.2078]
[1741542927657,3.113,2019.0,2018.4,4.19874]
[1741542927855,0.99091,2018.5,2018.4,3.2078]
[1741542928057,0.99106,2018.2,2018.0,3.2078]
[1741542928360,5.85574,2018.9,2018.0,3.2078]
[1741542928361,0.99111,2018.1,2018.0,3.2078]
[1741542928557,3.3789,2018.9,2017.9,0.00742334]
[1741542928558,0.99115,2018.0,2017.9,0.00742334]
[1741542928763,3.2078,2018.2,2017.7,3.2078]
[1741542928764,0.99125,2017.8,2017.7,3.2078]
[1741542928960,6.3208,2017.8,2017.2,3.2078]
[1741542929161,0.9915,2017.3,2017.2,3.2078]
[1741542929352,3.113,2017.3,2016.8,3.60546457]
[1741542929558,3.113,2017.3,2016.6,0.4064207]
[1741542929756,3.113,2017.3,2017.2,0.99155]
[1741542929959,3.2078,2017.8,2017.7,0.9913]
[1741542930161,3.2078,2017.8,2017.5,3.2078]
[1741542930359,3.2078,2017.8,2017.7,0.9913]
[1741542930665,0.00742334,2018.0,2017.9,0.9912]
[1741542930863,0.00742334,2018.0,2017.8,3.2078]
[1741542931061,0.99860334,2018.0,2017.8,3.2078]
[1741542931264,0.99125,2017.8,2017.7,0.00742334]
[1741542931659,9.59114,2017.8,2016.8,6.7308]
[1741542931863,0.99162,2017.1,2016.8,3.2078]
[1741542932166,0.99142,2017.5,2016.8,3.2078]
[1741542932365,3.6365,2017.7,2016.8,3.2078]
[1741542932560,0.99146,2017.4,2016.8,3.2078]
[1741542932762,3.6365,2017.7,2017.0,0.99903334]
[1741542932961,6.3208,2017.8,2017.0,0.00742334]
[1741542933164,0.00742334,2018.0,2017.9,0.9912]
[1741542933361,3.114,2018.7,2017.9,3.2078]
[1741542933362,3.2078,2018.7,2017.9,3.2078]
[1741542933561,3.2078,2018.7,2017.6,6.3218]
[1741542933764,0.99128,2017.8,2017.6,3.2078]
[1741542934071,3.2078,2017.8,2017.1,7.3554]
[1741542934365,3.114,2017.9,2017.2,0.99153]
[1741542934565,0.00742334,2017.7,2017.2,0.00742334]
[1741542934763,0.9915,2017.3,2017.2,0.00742334]
[1741542935865,0.00742334,2017.7,2017.5,0.99136]
[1741542936063,3.2078,2018.3,2017.2,3.21522334]
[1741542936272,3.2078,2018.3,2017.5,3.2078]
[1741542936463,0.99118,2018.0,2017.6,0.99132]
[1741542936770,3.2078,2018.9,2018.0,2.47789]
[1741542936975,3.6999,2019.0,2018.4,3.2078]
[1741542937162,0.00742334,2018.7,2018.3,2.47745]
[1741542937475,0.00742334,2018.7,2018.5,0.00742334]
[1741542937768,0.00742334,2018.7,2018.6,0.99086]
[1741542938161,0.00742334,2018.7,2018.6,3.2078]
[1741542938364,0.00742334,2018.7,2018.6,0.99086]
[1741542938565,0.00742334,2018.7,2018.6,4.19866]
[1741542938772,3.114,2019.4,2018.6,3.2078]
[1741542939067,3.114,2019.4,2018.5,0.00742334]
[1741542939068,3.2078,2019.1,2018.5,0.00742334]
[1741542939673,4.459,2019.4,2018.5,0.00742334]
[1741542939868,3.114,2019.4,2018.6,3.2078]
[1741542940073,3.6999,2019.6,2018.9,3.2078]
[1741542940268,0.00742334,2019.2,2018.9,3.2078]
[1741542941362,0.00742334,2019.2,2019.0,0.99062]
[1741542941566,0.00742334,2019.2,2019.1,0.99061]
[1741542943264,3.2078,2020.6,2020.1,0.99008]
[1741542943461,4.1977,2020.6,2020.2,0.99005]
[1741542943659,3.2078,2020.6,2020.1,3.2078]
[1741542943872,6.3208,2020.9,2020.4,3.2078]
[1741542944170,3.2078,2020.9,2020.4,0.98996]
[1741542944368,3.2078,2021.5,2020.7,3.2078]
[1741542944573,3.6968,2021.6,2021.0,3.2078]
[1741542944773,3.2078,2022.0,2020.6,5.58663]
[1741542944774,6.3198,2022.0,2021.5,3.2078]
[1741542945072,0.98952,2021.4,2020.9,3.2078]
[1741542945274,3.2078,2021.7,2020.9,3.2078]
[1741542945472,0.98952,2021.4,2021.0,0.98967]
[1741542945770,3.2078,2021.7,2020.9,3.21522334]
[1741542946167,4.68586,2022.3,2021.9,0.98923]
[1741542946370,4.68586,2022.3,2021.9,3.2078]
[1741542946371,3.6968,2022.3,2021.9,3.2078]
[1741542946766,0.98908,2022.3,2021.9,3.2078]
[1741542946970,3.2078,2022.5,2021.9,3.2078]
[1741542947170,3.2078,2022.5,2021.6,3.2078]
[1741542947371,3.2078,2022.2,2021.6,3.2078]
[1741542947573,0.9893,2021.8,2021.7,0.00742334]
[1741542948272,6.3188,2022.2,2021.7,0.00742334]
[1741542948468,0.98929,2021.8,2021.7,0.00742334]
[1741542949376,3.2078,2021.9,2021.0,3.2078]
[1741542949670,0.98949,2021.4,2021.1,0.9896]
[1741542949871,3.6113,2022.1,2021.3,3.2078]
[1741542950086,3.111,2022.5,2021.7,3.2078]
[1741542950479,0.00742334,2022.3,2021.9,0.00742334]
[1741542950668,0.98923,2022.0,2021.9,0.00742334]
[1741542950872,2.47275,2022.2,2021.4,3.2078]
[1741542951070,0.98946,2021.5,2021.1,3.2078]
[1741542951277,0.98942,2021.6,2021.1,3.2078]
[1741542951578,3.11,2022.2,2021.5,3.2078]
[1741542951776,0.00742334,2022.3,2021.6,3.2078]
[1741542951973,0.00742334,2022.3,2021.9,3.2078]
[1741542952173,0.00742334,2022.3,2021.6,0.00742334]
[1741542952374,0.00742334,2022.3,2021.7,4.19712]
[1741542952577,0.00742334,2022.3,2021.7,3.2078]
[1741542952877,3.21522334,2022.3,2021.7,3.2078]
[1741542953181,0.98924,2022.0,2021.7,4.19712]
[1741542953479,4.20429334,2022.3,2021.9,0.9892]
[1741542953677,0.9891,2022.2,2021.9,0.9892]
[1741542953880,4.20431334,2022.3,2021.9,0.9892]
[1741542954079,0.9891,2022.2,2021.9,0.9892]
[1741542954381,3.21522334,2022.3,2021.9,0.98921]
[1741542954680,0.98912,2022.2,2021.9,0.98921]
[1741542955377,3.21522334,2022.3,2021.7,3.2078]
[1741542955378,0.98918,2022.1,2021.8,0.98928]
[1741542955578,3.21522334,2022.3,2021.7,3.2078]
[1741542955780,2.47275,2022.2,2021.7,3.2078]
[1741542955978,0.98929,2021.9,2021.7,3.2078]
[1741542956178,0.98918,2022.1,2021.8,0.98927]
[1741542956486,0.98921,2022.0,2021.8,0.98928]
[1741542956670,3.21522334,2022.3,2021.7,3.2078]
[1741542956876,0.98913,2022.2,2021.7,3.2078]
[1741542957173,0.00742334,2022.3,2022.1,3.2078]
[1741542957375,0.00742334,2022.3,2021.8,0.98926]
[1741542957585,0.98929,2021.8,2021.7,3.2078]
[1741542958482,5.98485,2022.2,2021.7,3.2078]
[1741542958685,0.98929,2021.8,2021.7,3.2078]
[1741542959182,5.98485,2022.2,2021.6,0.00742334]
[1741542959381,3.5121,2022.2,2021.6,0.00742334]
[1741542959576,3.5121,2022.2,2021.6,3.21522334]
[1741542959779,0.99648334,2022.3,2021.7,5.68116]
[1741542959981,0.00742334,2022.3,2021.8,2.47324]
[1741542960376,0.00742334,2022.3,2022.0,3.2078]
[1741542960582,0.99651334,2022.3,2022.0,0.98917]
[1741542960785,2.48008334,2022.3,2021.7,3.2078]
[1741542961088,3.2078,2022.2,2021.7,3.2078]
[1741542961288,0.98913,2022.2,2021.9,0.9892]
[1741542961587,4.94396,2022.9,2021.9,0.9892]
[1741542961588,6.7199,2023.0,2022.1,3.2078]
[1741542961780,3.2078,2023.0,2022.4,3.2078]
[1741542961983,3.108,2023.6,2022.7,3.2078]
[1741542962281,3.108,2023.5,2022.5,2.47237]
[1741542962480,0.98853,2023.4,2022.7,5.67993]
[1741542962683,3.2078,2023.4,2022.4,3.2078]
[1741542962887,0.98862,2023.2,2022.9,0.98874]
[1741542963091,0.00742334,2023.3,2023.1,3.2078]
[1741542963282,0.00742334,2023.3,2022.8,3.21522334]
[1741542964289,0.00742334,2023.3,2022.8,0.00742334]
[1741542964790,0.98875,2022.9,2022.8,0.00742334]
[1741542964989,3.107,2022.9,2022.2,3.2078]
[1741542965187,3.107,2022.9,2022.5,3.2078]
[1741542965387,7.6598,2023.2,2022.5,3.2078]
[1741542965691,10.13138,2023.2,2022.5,4.19671]
[1741542965886,7.6598,2023.2,2022.7,0.98882]
[1741542966195,0.98877,2022.9,2022.7,0.98882]
[1741542966486,6.3148,2023.2,2022.7,0.98882]
[1741542966690,0.00742334,2023.3,2022.8,3.2078]
[1741542967182,3.21522334,2023.3,2022.8,3.2078]
[1741542967382,0.98871,2023.0,2022.8,4.19659]
[1741542967586,3.21522334,2023.3,2022.8,4.19659]
[1741542967587,3.21522334,2023.3,2022.8,3.2078]
[1741542967795,0.98869,2023.1,2022.8,4.19657]
[1741542968088,0.00742334,2023.3,2022.8,3.2078]
[1741542968388,0.98868,2023.1,2022.9,6.7581]
[1741542968585,3.21522334,2023.3,2022.7,6.1568]
[1741542968793,0.9888,2022.8,2022.7,6.1568]
[1741542968985,0.98879,2022.9,2022.7,6.1568]
[1741542969288,2.47159,2023.2,2022.6,0.00742334]
[1741542969488,3.2078,2023.0,2022.6,0.00742334]
[1741542970092,0.00742334,2023.3,2023.0,0.98868]
[1741542970287,0.9888,2022.8,2022.7,10.2114]
[1741542970594,2.4716,2023.2,2022.6,3.94530334]
[1741542970791,3.21522334,2023.3,2022.7,3.2078]
[1741542970989,0.9888,2022.8,2022.7,3.2078]
[1741542971189,3.21522334,2023.3,2022.6,0.00742334]
[1741542971494,3.2078,2023.0,2022.6,0.00742334]
[1741542971684,3.2078,2023.0,2022.6,0.99630334]
[1741542971890,0.98885,2022.7,2022.6,0.00742334]
[1741542972287,3.2078,2023.0,2022.6,0.00742334]
[1741542972595,0.98884,2022.8,2022.6,0.00742334]
[1741542972788,3.2078,2023.0,2022.6,0.99631334]
[1741542972983,0.98878,2022.9,2022.6,0.00742334]
[1741542973184,3.2078,2023.0,2022.6,0.00742334]
[1741542973390,0.00742334,2023.3,2022.7,3.2078]
[1741542973589,3.2078,2023.9,2023.2,0.98861]
[1741542973793,2.47043,2024.1,2023.4,3.2078]
[1741542974098,3.2078,2024.2,2023.4,3.2078]
[1741542974290,0.98822,2024.0,2023.4,4.19628]
[1741542974492,0.98844,2023.6,2023.4,4.19628]
[1741542974689,3.2078,2023.9,2023.4,3.2078]
[1741542974888,0.9882,2024.1,2023.8,3.2078]
[1741542975087,3.2078,2024.3,2023.8,3.2078]
[1741542975289,0.98793,2024.6,2024.3,0.98805]
[1741542975487,3.2078,2024.9,2024.1,3.2078]
[1741542975793,2.46994,2024.5,2023.9,3.4404]
[1741542975995,3.2078,2024.3,2023.7,22.187]
[1741542976193,3.2078,2024.3,2023.8,3.2078]
[1741542976389,0.98827,2023.9,2023.8,0.00742334]
[1741542976598,3.2078,2024.4,2023.8,0.00742334]
[1741542976888,2.47018,2024.3,2023.8,0.00742334]
[1741542977088,3.2078,2024.4,2023.8,0.00742334]
[1741542977292,0.98823,2024.0,2023.8,0.00742334]
[1741542977489,0.98827,2023.9,2023.8,0.00742334]
[1741542977791,0.98823,2024.0,2023.8,0.00742334]
[1741542977995,3.2078,2024.4,2023.8,0.00742334]
[1741542978589,0.98827,2023.9,2023.8,0.00742334]
[1741542978790,3.2078,2024.4,2023.8,0.00742334]
[1741542979284,0.98807,2024.3,2023.8,0.00742334]
[1741542979484,2.47018,2024.3,2023.8,0.00742334]
[1741542979689,0.98827,2023.9,2023.8,0.00742334]
[1741542980996,0.98827,2023.9,2023.8,3.34e-06]
[1741542981297,4.98827,2023.9,2023.8,3.34e-06]
[1741542981990,2.47129,2023.4,2022.4,10.3689]
[1741542982199,3.2078,2023.0,2022.4,10.3689]
[1741542982388,3.2078,2023.0,2022.7,0.98882]
[1741542982590,3.2078,2023.0,2022.4,10.73975854]
[1741542982797,0.9889,2022.7,2022.4,11.35787]
[1741542983091,3.2078,2023.0,2022.4,6.8522]
[1741542983296,0.9889,2022.7,2022.4,7.84118]
[1741542983896,0.00742334,2022.8,2022.4,6.8522]
[1741542984410,0.98853,2023.4,2023.1,0.98863]
[1741542984596,3.103,2023.5,2022.7,6.1568]
[1741542984791,0.98857,2023.3,2023.0,0.98869]
[1741542984994,3.103,2023.5,2022.7,8.62885]
[1741542985192,0.98855,2023.4,2023.0,4.19647]
[1741542985392,0.98854,2023.4,2023.0,4.19647]
[1741542985796,3.2078,2023.6,2023.3,0.98856]
[1741542986095,3.2078,2023.6,2023.0,3.2078]
[1741542986396,3.2078,2024.0,2023.3,3.2078]
[1741542986590,4.19604,2024.0,2023.6,4.19617]
[1741542986787,4.19604,2024.0,2023.7,0.98835]
[1741542987100,3.2078,2024.0,2023.4,7.19102334]
[1741542987395,0.98827,2023.9,2023.4,7.19102334]
[1741542987603,3.2078,2024.0,2023.4,0.00742334]
[1741542987801,3.2078,2024.0,2023.5,3.2078]
[1741542988399,0.98841,2023.6,2023.5,3.2078]
[1741542988800,2.47075,2023.9,2023.4,0.00742334]
[1741542989095,0.98839,2023.7,2023.4,0.99593334]
[1741542989298,3.2078,2024.0,2023.4,0.00742334]
[1741542989496,4.19603,2024.0,2023.7,0.98836]
[1741542989694,3.2078,2024.0,2023.4,3.21522334]
[1741542989898,0.98836,2023.7,2023.4,4.20371334]
[1741542990194,0.98835,2023.8,2023.4,4.20368334]
[1741542990600,3.2078,2024.0,2023.5,0.98844]
[1741542990801,0.98829,2023.9,2023.6,0.98841]
[1741542990994,0.98829,2023.9,2023.6,0.98839]
[1741542991299,3.102,2024.2,2023.7,3.2078]
[1741542991503,0.98822,2024.0,2023.7,3.2078]
[1741542991697,3.102,2024.2,2023.7,3.2078]
[1741542991896,4.09015,2024.2,2023.9,0.98825]
[1741542992097,3.102,2024.2,2023.7,3.2078]
[1741542992294,0.98831,2023.8,2023.7,3.2078]
[1741542992900,3.102,2024.2,2023.7,3.2078]
[1741542993102,3.2078,2024.0,2023.4,0.00742334]
[1741542993298,5.67835,2024.0,2023.4,0.00742334]
[1741542993500,0.98846,2023.5,2023.4,0.00742334]
[1741542994399,0.98846,2023.5,2023.4,3.34e-06]
[1741542994606,0.98872,2023.0,2022.8,0.98877]
[1741542994804,0.98872,2023.0,2022.8,0.9888]
[1741542995308,3.2078,2023.2,2022.7,3.2078]
[1741542995508,0.98878,2022.9,2022.7,4.19663]
[1741542995811,0.98878,2022.9,2022.7,4.20405334]
[1741542996307,0.98878,2022.9,2022.7,3.21522334]
[1741542996508,0.98874,2023.0,2022.7,3.21522334]
[1741542996802,0.98875,2022.9,2022.7,3.21522334]
[1741542996994,0.98875,2022.9,2022.7,4.20404334]
[1741542997199,0.98877,2022.9,2022.7,3.21522334]
[1741542997411,0.98877,2022.9,2022.7,4.20406334]
[1741542997802,0.9888,2022.8,2022.7,0.00742334]
[1741542999502,0.98895,2022.5,2022.4,3.2078]
[1741543000507,0.98905,2022.4,2022.2,0.98906]
[1741543000809,0.98905,2022.3,2022.2,0.00742334]
[1741543001201,4.19685,2022.3,2022.2,0.00742334]
[1741543002909,3.2078,2022.6,2022.2,0.00742334]
[1741543003108,0.98904,2022.4,2022.2,0.00742334]
[1741543003314,0.98905,2022.3,2022.2,0.99650334]
[1741543003615,0.98905,2022.3,2022.2,0.00742334]
[1741543004400,3.2078,2022.6,2022.2,3.21522334]
[1741543004606,0.98905,2022.3,2022.2,3.21522334]
[1741543004805,0.98905,2022.3,2022.2,0.00742334]
[1741543005107,0.989,2022.4,2022.2,0.99650334]
[1741543005309,3.2078,2022.6,2022.2,3.21522334]
[1741543005607,0.98897,2022.5,2022.3,0.98904]
[1741543005803,0.98905,2022.3,2022.2,3.21522334]
[1741543005998,3.2078,2022.6,2022.2,3.21522334]
[1741543006204,0.98896,2022.5,2022.3,0.98904]
[1741543006408,3.2078,2022.6,2022.2,3.21522334]
[1741543006711,3.2078,2022.6,2022.2,0.00742334]
[1741543006907,0.98905,2022.3,2022.2,0.00742334]
[1741543008111,2.47287,2022.1,2021.4,3.2674]
[1741543008312,3.101,2022.0,2021.4,3.2674]
[1741543008509,8.78186,2022.0,2021.4,3.2674]
[1741543008714,0.98942,2021.6,2021.4,4.25687]
[1741543008907,3.2078,2021.7,2021.1,3.2756]
[1741543009105,0.9895,2021.4,2021.3,0.00742334]
[1741543009312,0.00742334,2021.7,2021.3,0.00742334]
[1741543009513,0.98946,2021.5,2021.3,0.99693334]
[1741543009713,0.98946,2021.5,2021.3,0.00742334]
[1741543009917,0.98946,2021.5,2021.3,0.99694334]
[1741543010127,0.98946,2021.5,2021.3,0.00742334]
[1741543010611,0.98949,2021.4,2021.3,0.00742334]
[1741543010809,0.98972,2021.0,2020.5,6.6253]
[1741543011004,5.6816,2021.4,2020.7,0.9898]
[1741543011205,0.98984,2020.7,2020.5,6.6253]
[1741543011411,2.47409,2021.1,2020.5,3.2078]
[1741543011720,2.47409,2021.1,2020.2,31.919]
[1741543011721,0.98986,2020.7,2020.4,0.98994]
[1741543011920,3.101,2021.0,2020.6,0.99727334]
[1741543012215,0.98983,2020.7,2020.6,0.00742334]
[1741543014217,0.98983,2020.7,2019.9,6.1568]
[1741543014218,0.99006,2020.3,2019.9,6.1568]
[1741543014417,0.9901,2020.2,2020.0,0.99014]
[1741543014616,3.2078,2020.5,2020.0,2.47544]
[1741543014814,3.2078,2020.5,2019.9,3.2078]
[1741543015110,0.99,2020.4,2020.2,0.99006]
[1741543015512,3.2078,2020.5,2020.1,0.00742334]
[1741543015712,0.98998,2020.4,2020.1,0.99753334]
[1741543015912,0.98998,2020.4,2020.1,0.00742334]
[1741543016122,0.98998,2020.4,2020.1,0.99753334]
[1741543016821,0.99008,2020.2,2020.1,0.00742334]
[1741543017025,0.99003,2020.3,2020.1,0.99754334]
[1741543017214,0.99008,2020.2,2020.1,0.00742334]
[1741543018109,4.19788,2020.2,2020.1,0.00742334]
[1741543018321,7.53962232,2020.2,2019.3,3.703]
[1741543018519,3.2078,2019.8,2019.0,6.4748]
[1741543018713,0.99054,2019.3,2019.0,7.46542]
[1741543018914,5.57781,2019.7,2019.0,6.4748]
[1741543019118,3.2078,2019.6,2019.0,6.4748]
[1741543019315,3.2078,2019.6,2019.0,3.2078]
[1741543019512,0.9907,2019.0,2018.7,25.7253]
[1741543019716,3.2078,2019.3,2018.8,3.2078]
[1741543020022,0.00742334,2019.5,2019.1,0.00493807]
[1741543020323,0.99057,2019.2,2019.1,0.00493807]
[1741543021023,3.102,2019.2,2018.5,3.2078]
[1741543021213,3.102,2019.2,2018.8,0.99074]
[1741543021214,0.99063,2019.1,2018.8,0.99074]
[1741543021409,3.102,2019.2,2018.6,3.2078]
[1741543021824,0.99085,2018.7,2018.4,0.99093]
[1741543022020,3.2078,2019.0,2018.7,0.99079]
[1741543022218,3.102,2019.2,2018.3,3.2078]
[1741543022415,0.99078,2018.8,2018.3,3.2078]
[1741543022615,3.2078,2019.3,2018.3,3.2078]
[1741543022815,4.448,2019.4,2018.7,3.2078]
[1741543023015,0.99059,2019.2,2018.9,0.99071]
[1741543023221,0.99053,2019.3,2019.0,0.99066]
[1741543023415,4.448,2019.4,2019.0,0.99066]
[1741543023416,0.99057,2019.2,2019.0,0.99066]
[1741543023625,0.99055,2019.3,2019.0,0.99066]
[1741543023815,3.103,2019.4,2018.9,3.2078]
[1741543024017,3.2078,2020.2,2019.3,3.2078]
[1741543024220,0.99019,2020.0,2019.8,3.2078]
[1741543024427,5.683,2020.2,2019.5,3.2078]
[1741543024622,0.99041,2019.6,2019.3,2.949]
[1741543024817,3.2078,2019.9,2019.3,0.99049]
[1741543025023,3.2078,2019.9,2019.2,3.2078]
[1741543025217,3.2078,2019.9,2019.4,0.00742334]
[1741543025218,0.00742334,2019.8,2019.4,0.00742334]
[1741543025418,0.99042,2019.5,2019.4,0.00742334]
[1741543025818,2.47622,2019.4,2018.8,6.1568]
[1741543026022,6.3108,2019.3,2018.6,0.99083]
[1741543026228,0.99073,2018.9,2018.6,0.99084]
[1741543026423,8.78717,2019.3,2018.5,0.99089]
[1741543026424,0.9908,2018.8,2018.5,0.99089]
[1741543026928,3.2078,2018.7,2018.1,0.496]
[1741543027124,6.7055,2018.7,2018.0,3.2078]
[1741543027320,3.4977,2018.7,2018.0,3.2078]
[1741543027630,0.00742334,2018.6,2018.5,0.99091]
[1741543027930,0.00742334,2018.6,2018.1,6.7412]
[1741543028123,0.00742334,2018.6,2018.5,0.99091]
[1741543028330,0.00742334,2018.6,2018.1,9.949]
[1741543028718,0.99106,2018.2,2018.1,3.2078]
[1741543028925,0.99111,2018.1,2018.0,3.2078]
[1741543029125,2.48465334,2018.6,2018.0,3.2078]
[1741543029126,3.2078,2018.4,2018.0,3.2078]
[1741543029319,6.3108,2018.4,2018.0,3.2078]
[1741543029520,6.3108,2018.4,2017.6,9.89609107]